Cogmind - Beta 10.2 @@@ ROGUE MODE // 2021.09.09 @ 17:48:53 Player: youngster Result: Self-destructed Performance ------------- Evolutions (4) 2000 Regions Visited (15) 3000 Robots Destroyed (82) 410 Value Destroyed (3232) 3232 Prototype IDs (40) 800 Alien Tech Used (0) 0 Bonus (4194) 4194 TOTAL SCORE: 13636 Bonus ------- High Alert Combat Kills 204 Follower Combat Kills 2113 Aligned with FarCom 300 Met Data Miner 300 Met Zhirov 300 Built Enhanced Grunts 300 Met R17 at Cetus 500 Read Decrypted Archives 300 Friendly Fire -123 Cogmind --------- Core Integrity 563/850 Matter 300/300 Energy 100/100 System Corruption 6% Temperature Cool (0) Movement Core (50) Location -6/Hub_04(d) Parts ------- > --- POWER (1) -------- (None) > --- PROPULSION (4) --- Centrium Heavy Treads > --- UTILITY (5) ------ Advanced Melee Analysis Suite Advanced Melee Analysis Suite Advanced Melee Analysis Suite > --- WEAPON (5) ------- (None) > --- INVENTORY (4) ---- Centrium Heavy Treads Decoy Drone Bay Peak State ------------ > --- POWER ------------ Quantum Reactor > --- PROPULSION ------- Centrium Heavy Treads Centrium Heavy Treads > --- UTILITY ---------- Large Storage Unit High-capacity Storage Unit Advanced Melee Analysis Suite Advanced Melee Analysis Suite Advanced Melee Analysis Suite > --- WEAPON ----------- Gauss Rifle Coil Gun Heavy Machine Gun Improved KE Penetrator Power Sword > --- INVENTORY -------- Quantum Reactor Improved Medium Treads Centrium Heavy Treads Advanced Heat Sink Large Matter Pod Advanced Signal Interpreter Centrium Medium Armor Plating Centrium Medium Armor Plating Centrium Medium Armor Plating Centrium Medium Armor Plating Insulated Plating Decoy Drone Bay Advanced Variable Charge Gun Improved KE Penetrator Improved KE Penetrator Remote Datajack [Rating: 101] Favorites ----------- Power Micro Nuclear Core Engine Ion Engine Power Core Micro Nuclear Core Reactor Quantum Reactor Propulsion Light Treads Treads Light Treads Leg Aluminum Leg Wheel Wheel Utility Large Storage Unit Device Weapon Cycler Storage Large Storage Unit Processor Seismic Analyzer Protection Insulated Plating Weapon Gauss Rifle Energy Gun AWS/Thermal Ballistic Gun Gauss Rifle Ballistic Cannon Light Cannon Launcher Proton Missile Launcher Special Weapon Remote Datajack Impact Weapon Hammer Slashing Weapon Ripper Build | -11 -10 -10 -10 -9 -8 -7 -7 -7 -7 -6 -6 -6 -6 -6 -6 ------- Run | Scr Mat Min Exi Min Mat Fac Low Low Dat Pro Fac Ext Cet Arc Hub Slots Evolved 8 | . . . . . 4 2 . . . . 2 . . . . Power . | . . . . . . . . . . . . . . . . Propulsion 2 | . . . . . 1 1 . . . . . . . . . Utility 3 | . . . . . 2 . . . . . 1 . . . . Weapon 3 | . . . . . 1 1 . . . . 1 . . . . Parts Attached 111 | 7 5 5 1 . 13 10 15 5 1 3 3 20 19 . 4 Power 11 | 1 1 . . . 1 2 . . . . . 2 4 . . Engine 4 | 1 1 . . . 1 1 . . . . . . . . . Core 3 | . . . . . . 1 . . . . . 1 1 . . Reactor 4 | . . . . . . . . . . . . 1 3 . . Propulsion 26 | 2 1 1 . . 4 2 3 1 . 2 . 8 2 . . Treads 22 | 2 1 1 . . 3 2 3 . . 2 . 6 2 . . Leg 3 | . . . . . . . . 1 . . . 2 . . . Wheel 1 | . . . . . 1 . . . . . . . . . . Hover . | . . . . . . . . . . . . . . . . Flight . | . . . . . . . . . . . . . . . . Utility 23 | 2 2 . . . 2 . 6 . . . 2 2 4 . 3 Device 3 | . . . . . . . 3 . . . . . . . . Storage 8 | 2 2 . . . . . . . . . 1 1 2 . . Processor 4 | . . . . . . . 1 . . . . . . . 3 Hackware . | . . . . . . . . . . . . . . . . Protection 8 | . . . . . 2 . 2 . . . 1 1 2 . . Artifact . | . . . . . . . . . . . . . . . . Weapon 51 | 2 1 4 1 . 6 6 6 4 1 1 1 8 9 . 1 Energy Gun 2 | . . . 1 . . . . . . . . . 1 . . Energy Cannon . | . . . . . . . . . . . . . . . . Ballistic Gun 28 | 2 . 3 . . 3 4 4 2 1 1 . 4 4 . . Ballistic Cannon 1 | . 1 . . . . . . . . . . . . . . Launcher 10 | . . 1 . . 2 1 2 1 . . . 1 2 . . Special Weapon 1 | . . . . . . . . . . . . . 1 . . Impact Weapon 2 | . . . . . 1 1 . . . . . . . . . Slashing Weapon 7 | . . . . . . . . 1 . . 1 3 1 . 1 Piercing Weapon . | . . . . . . . . . . . . . . . . Special Melee Weapon . | . . . . . . . . . . . . . . . . Unidentified Prototypes 6 | . . . . . . . . . . . . 2 4 . . Parts Lost 18 | . 1 . . . . . 5 1 . 1 . 2 1 . 7 Power 2 | . 1 . . . . . . . . . . . . . 1 Propulsion 5 | . . . . . . . 3 1 . . . . . . 1 Utility 2 | . . . . . . . 2 . . . . . . . . Weapon 9 | . . . . . . . . . . 1 . 2 1 . 5 Highest Loss Streak 7 | . 1 . . . . . 4 1 . 1 . 1 1 . 7 Average Slot Usage (%) 94 | . 99 95 92 85 79 92 95 98 100 99 95 99 91 86 80 Engine 4 | . 13 14 14 14 9 4 . . . . . . . . . Core 3 | . . . . . . 2 7 7 7 7 6 4 2 . . Treads 23 | . 28 28 28 28 18 23 24 25 23 23 20 20 17 13 12 Leg 2 | . . . . . . . . 4 7 7 6 6 . . . Wheel 1 | . . . . . 9 7 5 . . . . . . . . Device 3 | . . . . . . . 6 7 7 7 6 6 6 6 3 Storage 18 | . 28 28 28 28 18 15 15 15 15 15 13 13 17 20 15 Processor 3 | . . . . . . . 7 7 7 7 6 6 6 6 13 Protection 3 | . . . . . 7 15 . . . . 6 6 2 . . Energy Gun 2 | . . . 6 14 9 7 1 . . . . . . . . Ballistic Gun 19 | . 18 21 14 . 6 7 24 28 23 29 26 25 25 26 23 Slashing Weapon 1 | . . . . . . . . . 6 . 2 5 2 . 3 Naked Turns . | . . . . . . . . . . . . . . . . Heaviest Build 99 | 15 41 43 45 45 55 64 56 53 53 54 76 88 99 96 96 Greatest Support 160 | 40 40 40 40 40 40 60 80 80 60 60 60 90 160 160 160 Greatest Overweight (x) 6 | 1 1 1 1 1 5 6 5 . . . 1 5 1 . . Average Overweight (x) 1 | . . . . 1 4 5 2 . . . . . . . . Largest Inventory Capacity 18 | 8 16 16 16 16 16 16 16 16 16 16 18 18 18 18 18 Average Capacity 16 | 6 11 16 16 16 16 16 16 16 16 16 17 18 18 18 17 Most Carried 18 | 5 14 16 16 16 16 16 16 16 16 16 16 18 18 18 18 Average Carried 15 | 3 8 15 15 15 15 15 14 15 16 15 15 17 17 18 17 Final Capacity 18 | 8 16 16 16 16 16 16 16 16 16 16 18 18 18 18 4 Final Carried 18 | 5 14 15 15 16 16 16 14 16 16 16 15 18 18 18 4 Class Distribution -------------------- 36% | Scavenger-Mutant 33% | Mutant 18% | Scavenger-Gunner 11% | Scavenger-Skirmisher Dominant Class ---------------- Mutant | -10/Materials Mutant | -10/Mines Mutant | -10/Exiles Mutant | -9/Mines Mutant | -8/Materials Scavenger-Mutant | -7/Factory Scavenger-Skirmisher | -7/Lower Caves Scavenger-Gunner | -7/Lower Caves Scavenger-Mutant | -7/Data Miner Scavenger-Gunner | -6/Proximity Caves Scavenger-Skirmisher | -6/Factory Scavenger-Mutant | -6/Extension Scavenger-Mutant | -6/Cetus Scavenger-Mutant | -6/Archives Scavenger-Mutant | -6/Hub_04(d) Resources | -11 -10 -10 -10 -9 -8 -7 -7 -7 -7 -6 -6 -6 -6 -6 -6 ----------- Run | Scr Mat Min Exi Min Mat Fac Low Low Dat Pro Fac Ext Cet Arc Hub Matter Collected 2310 | 308 121 88 52 52 179 113 329 135 . 181 11 389 296 . 56 Remotely . | . . . . . . . . . . . . . . . . Salvage Created 3976 | 139 271 83 . 97 287 836 511 192 . 187 11 612 418 . 332 Parts 177 | 10 24 5 . 3 14 33 22 7 . 5 1 23 19 . 11 Haulers Intercepted 2 | . 1 . . . 1 . . . . . . . . . . Recyclers Shooed 2 | 1 . . . . . . . . . . . 1 . . . Parts Field Recycled . | . . . . . . . . . . . . . . . . Retrieved Matter . | . . . . . . . . . . . . . . . . Parts Self-Destructed 49 | . . . . . . . 19 3 . 27 . . . . . Prevented 7 | . . . . . . . 3 4 . . . . . . . Kills | -11 -10 -10 -10 -9 -8 -7 -7 -7 -7 -6 -6 -6 -6 -6 -6 ------- Run | Scr Mat Min Exi Min Mat Fac Low Low Dat Pro Fac Ext Cet Arc Hub Combat Hostiles Destroyed 61 | . 8 2 . 2 5 11 11 4 . 3 . 4 6 . 5 Melee 8 | . . . . . . . . . . . . 1 2 . 5 Guns 37 | . 3 2 . 2 2 9 9 3 . 3 . 3 1 . . Cannons 5 | . 5 . . . . . . . . . . . . . . AOE 8 | . . . . . 3 2 2 1 . . . . . . . Classes Destroyed 14 | 2 4 . . . 3 3 . 1 . . 1 . . . . Worker 1 | . . . . . . . . . . . 1 . . . . Builder 2 | . . . . . . 1 . . . . . 1 . . . Tunneler 3 | 3 . . . . . . . . . . . . . . . Hauler 2 | . 1 . . . 1 . . . . . . . . . . Recycler 8 | 1 . . . . 1 3 . . . . . 3 . . . Operator 1 | . . . . . 1 . . . . . . . . . . Watcher 4 | . 1 . . . . 1 . . . . . . 2 . . Swarmer 14 | . 3 . . . 3 . 4 . . . . 2 2 . . Grunt 28 | . 5 2 . 2 . 6 3 3 . 2 . 2 . . 3 Brawler 1 | . . . . . . 1 . . . . . . . . . Duelist 1 | . . . . . . . . 1 . . . . . . . Sentry 5 | . . . . . 1 . 2 . . 1 . . . . 1 Hunter 2 | . . . . . 1 . . . . . . . . . 1 Programmer 6 | . . . . . . 4 2 . . . . . . . . Cetus Guard 4 | . . . . . . . . . . . . . 4 . . Best Kill Streak 8 | 2 2 2 . 2 3 8 3 2 . 1 1 2 4 . 5 Combat Bots Only 7 | . 2 2 . 2 3 7 3 2 . 1 . 2 3 . 5 Max Kills in Single Turn 2 | 1 1 1 . 1 2 2 1 1 . 1 1 1 2 . 1 Gunslinging . | . . . . . . . . . . . . . . . . Exploded 2 | . . . . . 2 1 1 1 . . . . . . . Melee 1 | . . . . . . . . . . . . 1 1 . 1 Uniques/NPCs Destroyed . | . . . . . . . . . . . . . . . . Combat | -11 -10 -10 -10 -9 -8 -7 -7 -7 -7 -6 -6 -6 -6 -6 -6 -------- Run | Scr Mat Min Exi Min Mat Fac Low Low Dat Pro Fac Ext Cet Arc Hub Damage Taken 5642 | . 393 121 . 39 195 179 912 166 . 357 . 635 458 . 2187 Core 617 | . 67 23 . . 24 . 158 30 . 28 . 65 9 . 213 Absorbed by Shields 268 | . . . . . . . . . . . . 147 111 . 10 Core Remaining (%) 82 | 100 . . . 64 95 . . . . 69 . . . . . Volleys Fired 151 | 19 38 7 . . 8 5 22 8 . 8 . 14 18 . 4 Largest 4 | 2 2 2 . . 1 1 3 4 . 4 . 4 4 . 4 Hottest 123 | 40 55 43 . . 33 36 84 108 . 113 . 117 121 . 123 Shots Fired 367 | 38 76 12 . 5 19 24 59 23 . 32 . 45 24 . 10 Gun 320 | 38 61 10 . 5 16 21 55 20 . 32 . 43 9 . 10 Cannon 15 | . 15 . . . . . . . . . . . . . . Launcher 31 | . . 2 . . 3 3 4 3 . . . 2 14 . . Special 1 | . . . . . . . . . . . . . 1 . . Kinetic 289 | 38 76 10 . . 5 2 44 20 . 32 . 43 9 . 10 Thermal 46 | . . . . 5 11 19 11 . . . . . . . . Explosive 5 | . . 2 . . 3 . . . . . . . . . . Electromagnetic 26 | . . . . . . 3 4 3 . . . 2 14 . . Robot Hit Streak 13 | 5 11 8 . 7 9 9 13 7 . 10 . 10 6 . 3 Robot Miss Streak 9 | 4 4 2 . . 4 2 2 3 . 5 . 9 1 . 1 Penetration Max 1 | . . . . . . . 1 . . . . 1 . . . Secondary Targets 2 | . 1 . . . . . 1 . . . . . . . . Max Gunslinging Chain 1 | . 1 . . . . . 1 . . . . . . . . Autonomous 47 | . . . . 5 11 19 12 . . . . . . . . Shots Hit Robots 278 | 21 50 7 . 5 16 23 44 13 . 26 1 38 9 . 25 Core Hits 166 | 9 17 6 . 2 14 19 21 12 . 8 1 26 24 . 7 Critical Hits 12 | 1 3 . . . . . 1 . . 2 . 3 . . 2 Critical Kills 3 | 1 . . . . . . . . . . . 2 . . . Critical Parts Destroyed 9 | . 3 . . . . . 1 . . 2 . 1 . . 2 Melee Attacks 46 | . . . . . 3 10 . 1 . . 3 7 2 . 20 Impact 13 | . . . . . 3 10 . . . . . . . . . Slashing 33 | . . . . . . . . 1 . . 3 7 2 . 20 Piercing . | . . . . . . . . . . . . . . . . Sneak Attacks 10 | . . . . . 2 3 . . . . 1 4 . . . Combat Hostiles . | . . . . . . . . . . . . . . . . Follow-up Attacks . | . . . . . . . . . . . . . . . . Damage Inflicted 8582 | 222 485 117 . 154 708 944 1164 467 . 380 123 1344 1416 . 1058 Guns 4359 | 222 308 102 . 154 375 547 1007 211 . 380 . 798 110 . 145 Cannons 166 | . 166 . . . . . . . . . . . . . . Explosions 2098 | . . . . . 221 223 157 256 . . . 29 1212 . . Melee 1893 | . . . . . 108 166 . . . . 123 500 94 . 902 Ramming 66 | . 11 15 . . 4 8 . . . . . 17 . . 11 Kinetic 3185 | 222 474 102 . . 54 20 669 211 . 380 . 798 110 . 145 Thermal 1832 | . . . . 154 321 527 338 88 . . . . 404 . . Explosive 221 | . . . . . 221 . . . . . . . . . . Electromagnetic 1385 | . . . . . . 223 157 168 . . . 29 808 . . Impact 274 | . . . . . 108 166 . . . . . . . . . Slashing 1619 | . . . . . . . . . . . 123 500 94 . 902 Piercing . | . . . . . . . . . . . . . . . . Highest Corruption 6 | . . . . . . . . . . . . . . . 6 Average Corruption 6 | . . . . . . . . . . . . . . . 6 Corruption Purged . | . . . . . . . . . . . . . . . . Overload Shots . | . . . . . . . . . . . . . . . . Overflow Damage 224 | . . . . . 76 33 . . . . . 64 23 . 28 Projectiles . | . . . . . . . . . . . . . . . . Explosions 23 | . . . . . . . . . . . . . 23 . . Melee 201 | . . . . . 76 33 . . . . . 64 . . 28 Knockbacks 1 | . 1 . . . . . . . . . . . . . . Impact . | . . . . . . . . . . . . . . . . Kinetic 1 | . 1 . . . . . . . . . . . . . . Secondary . | . . . . . . . . . . . . . . . . Self-Inflicted Damage 79 | . . 46 . . 31 2 . . . . . . . . . Shots 2 | . . 1 . . 1 . . . . . . . . . . Rammed 15 | . 4 2 . . 2 1 . . . . . 4 . . 2 Targets Rammed 16 | . 4 2 . . 2 2 . . . . . 4 . . 2 Kicked . | . . . . . . . . . . . . . . . . Crushed 1 | . . . . . . 1 . . . . . . . . . Highest Temperature 120 | . 28 3 . . . 36 104 117 . 113 . 114 105 . 120 Average Temperature 32 | . 10 3 . . . 27 37 49 . 42 . 42 27 . 37 Received Heat Transfer 1456 | . 171 42 . 24 45 72 255 99 . 69 . 130 . . 549 Siege Activations . | . . . . . . . . . . . . . . . . Robots Corrupted 3 | . . . . . . . . . . . . . 3 . . Combat Hostiles 3 | . . . . . . . . . . . . . 3 . . Parts Fried 14 | . . . . . 3 7 . . . . . . 4 . . Impact Corruptions 6 | . . . . . 3 3 . . . . . . . . . Robots Melted . | . . . . . . . . . . . . . . . . Combat Hostiles . | . . . . . . . . . . . . . . . . Parts Melted 2 | . . . . . . . 2 . . . . . . . . Heat Transferred 1941 | . . . . 185 407 592 407 100 . . . . 250 . . Parts Sabotaged . | . . . . . . . . . . . . . . . . Parts Stolen . | . . . . . . . . . . . . . . . . Parts Stripped . | . . . . . . . . . . . . . . . . Power Chain Reactions 3 | . . . . . . . . 1 . . . . 2 . . Missiles Intercepted . | . . . . . . . . . . . . . . . . Alert | -11 -10 -10 -10 -9 -8 -7 -7 -7 -7 -6 -6 -6 -6 -6 -6 ------- Run | Scr Mat Min Exi Min Mat Fac Low Low Dat Pro Fac Ext Cet Arc Hub Peak Influence 1095 | 20 169 97 . 50 293 237 . . . . 94 736 1095 570 404 Initial 382 | . 13 47 . . . 133 . . . . 86 45 382 358 199 Average 214 | 8 100 56 . 29 134 141 . . . . 88 331 719 404 284 Maximum Alert Level 3 | . . . . . 1 1 . . . . . 3 3 2 2 Low Security (%) 69 | 100 100 100 . 100 72 81 . . . . 100 45 . . 34 Level 1 12 | . . . . . 27 18 . . . . . 16 6 69 63 Level 2 12 | . . . . . . . . . . . . 30 54 30 1 Level 3 5 | . . . . . . . . . . . . 7 39 . . Level 4 . | . . . . . . . . . . . . . . . . Level 5 . | . . . . . . . . . . . . . . . . High Security . | . . . . . . . . . . . . . . . . Max Security . | . . . . . . . . . . . . . . . . Squads Dispatched 10 | . 1 . . . 1 2 . . . . . 3 . . 3 Investigation 1 | . 1 . . . . . . . . . . . . . . Extermination 2 | . . . . . . 2 . . . . . . . . . Reinforcement 7 | . . . . . 1 . . . . . . 3 . . 3 Assault . | . . . . . . . . . . . . . . . . Garrison . | . . . . . . . . . . . . . . . . Intercept . | . . . . . . . . . . . . . . . . Construction Impeded 2 | . . . . . . . . . . . . 2 . . . Haulers Reinforced . | . . . . . . . . . . . . . . . . Stealth | -11 -10 -10 -10 -9 -8 -7 -7 -7 -7 -6 -6 -6 -6 -6 -6 --------- Run | Scr Mat Min Exi Min Mat Fac Low Low Dat Pro Fac Ext Cet Arc Hub Distress Signals 12 | . 2 . . . 1 1 . . . . . 3 2 . 3 Communications Jammed . | . . . . . . . . . . . . . . . . Distress Signals . | . . . . . . . . . . . . . . . . Times Spotted 136 | . 15 2 . 2 10 12 12 6 . 11 . 38 16 . 12 Peak Tracking Total 7 | . 3 2 . 2 3 7 5 4 . 4 . 5 5 . 6 Tactical Retreats 4 | . . . . . . . 1 1 . . . 2 . . . Traps | -11 -10 -10 -10 -9 -8 -7 -7 -7 -7 -6 -6 -6 -6 -6 -6 ------- Run | Scr Mat Min Exi Min Mat Fac Low Low Dat Pro Fac Ext Cet Arc Hub Traps Triggered 8 | . 1 . . . 2 1 . . . . . 3 . . 1 Indirectly . | . . . . . . . . . . . . . . . . Trap Hack Attempts . | . . . . . . . . . . . . . . . . Triggered . | . . . . . . . . . . . . . . . . Disarmed . | . . . . . . . . . . . . . . . . Reprogrammed . | . . . . . . . . . . . . . . . . Reused . | . . . . . . . . . . . . . . . . Traps Extracted . | . . . . . . . . . . . . . . . . Installed 6 | . . . . 5 . . . . . 1 . . . . . Triggered 4 | . . . . . . . 3 . . . . 1 . . . Machines | -11 -10 -10 -10 -9 -8 -7 -7 -7 -7 -6 -6 -6 -6 -6 -6 ---------- Run | Scr Mat Min Exi Min Mat Fac Low Low Dat Pro Fac Ext Cet Arc Hub Machines Disabled 15 | . . . . . 1 . . . . . . 4 4 2 4 Max in Single Turn 2 | . . . . . 1 . . . . . . 2 . . 2 Energy Cycler 1 | . . . . . . . . . . . . 1 . . . Machines Sabotaged . | . . . . . . . . . . . . . . . . Garrisons Compromised . | . . . . . . . . . . . . . . . . Overloaded Fab Kills . | . . . . . . . . . . . . . . . . Fab Network Shutdowns . | . . . . . . . . . . . . . . . . Hacking | -11 -10 -10 -10 -9 -8 -7 -7 -7 -7 -6 -6 -6 -6 -6 -6 --------- Run | Scr Mat Min Exi Min Mat Fac Low Low Dat Pro Fac Ext Cet Arc Hub Machines Accessed 25 | . 5 . 2 1 1 2 2 . 4 . 1 3 3 1 . Terminals 13 | . 5 . . . 1 1 . . . . . 3 3 . . Fabricators 1 | . . . . . . 1 . . . . . . . . . Repair Stations 1 | . . . . . . . . . . . 1 . . . . Recycling Units . | . . . . . . . . . . . . . . . . Scanalyzers . | . . . . . . . . . . . . . . . . Garrison Access . | . . . . . . . . . . . . . . . . Total Hacks 91 | . 15 . 2 1 1 3 10 . 26 . 1 3 4 25 . Successful 76 | . 8 . 2 1 . 2 10 . 26 . . . 2 25 . Failed 15 | . 7 . . . 1 1 . . . . 1 3 2 . . Catastrophic 2 | . . . . . . . . . . . . 1 1 . . Database Lockouts . | . . . . . . . . . . . . . . . . Manual 18 | . 13 . 1 . 1 . . . . . . 1 2 . . Terminals 24 | . 15 . . . 1 1 . . . . . 3 4 . . Fabricators 2 | . . . . . . 2 . . . . . . . . . Repair Stations 1 | . . . . . . . . . . . 1 . . . . Recycling Units . | . . . . . . . . . . . . . . . . Scanalyzers . | . . . . . . . . . . . . . . . . Garrison Access . | . . . . . . . . . . . . . . . . Terminal Hacks 70 | . 3 . 2 1 . 1 10 . 26 . . . 2 25 . Record 49 | . 1 . 1 . . . 9 . 11 . . . 2 25 . Part Schematic 7 | . . . . . . . . . 7 . . . . . . Robot Schematic 5 | . . . . . . . . . 5 . . . . . . Robot Analysis 1 | . 1 . . . . . . . . . . . . . . Prototype ID Bank 3 | . . . . . . . . . 3 . . . . . . Open Door 2 | . . . . 1 . . 1 . . . . . . . . Branch Access Points 2 | . 1 . . . . 1 . . . . . . . . . EX-Prototype ID Bank 1 | . . . 1 . . . . . . . . . . . . Fabricator Hacks 1 | . . . . . . 1 . . . . . . . . . Build 1 | . . . . . . 1 . . . . . . . . . Repair Station Hacks . | . . . . . . . . . . . . . . . . Recycling Unit Hacks . | . . . . . . . . . . . . . . . . Scanalyzer . | . . . . . . . . . . . . . . . . Garrison Access Hacks . | . . . . . . . . . . . . . . . . Unauthorized Hacks 5 | . 5 . . . . . . . . . . . . . . Terminals 5 | . 5 . . . . . . . . . . . . . . Track 1 | . 1 . . . . . . . . . . . . . . Botnet 4 | . 4 . . . . . . . . . . . . . . Fabricators . | . . . . . . . . . . . . . . . . Repair Stations . | . . . . . . . . . . . . . . . . Recycling Units . | . . . . . . . . . . . . . . . . Scanalyzers . | . . . . . . . . . . . . . . . . Garrison Access . | . . . . . . . . . . . . . . . . Data Cores Recovered . | . . . . . . . . . . . . . . . . Used . | . . . . . . . . . . . . . . . . Hacking Detections 14 | . 5 . . . 1 1 . . . . . 3 4 . . Full Trace Events 1 | . 1 . . . . . . . . . . . . . . Feedback Events . | . . . . . . . . . . . . . . . . Feedback Blocked . | . . . . . . . . . . . . . . . . Robot Schematics Acquired 5 | . . . . . . . . . 5 . . . . . . Robots Built . | . . . . . . . . . . . . . . . . Matter . | . . . . . . . . . . . . . . . . Time . | . . . . . . . . . . . . . . . . Total Robot Build Rating . | . . . . . . . . . . . . . . . . Part Schematics Acquired 7 | . . . . . . . . . 7 . . . . . . Parts Built 2 | . . . . . . 2 . . . . . . . . . Matter 168 | . . . . . . 168 . . . . . . . . . Time 42 | . . . . . . 42 . . . . . . . . . Total Part Build Rating 8 | . . . . . . 8 . . . . . . . . . Parts Repaired . | . . . . . . . . . . . . . . . . Time . | . . . . . . . . . . . . . . . . Parts Recycled . | . . . . . . . . . . . . . . . . Recycled Matter . | . . . . . . . . . . . . . . . . Retrieved Matter . | . . . . . . . . . . . . . . . . Retrieved Components . | . . . . . . . . . . . . . . . . Parts Scanalyzed . | . . . . . . . . . . . . . . . . Part Schematics Acquired . | . . . . . . . . . . . . . . . . Parts Damaged . | . . . . . . . . . . . . . . . . Bothacking | -11 -10 -10 -10 -9 -8 -7 -7 -7 -7 -6 -6 -6 -6 -6 -6 ------------ Run | Scr Mat Min Exi Min Mat Fac Low Low Dat Pro Fac Ext Cet Arc Hub Used RIF Installer . | . . . . . . . . . . . . . . . . Robots Hacked 1 | . . . . . . . . . . . . . 1 . . Non-combat . | . . . . . . . . . . . . . . . . Combat 1 | . . . . . . . . . . . . . 1 . . Robot Hacks Applied 1 | . . . . . . . . . . . . . 1 . . parse_system 1 | . . . . . . . . . . . . . 1 . . Relay Couplers Released 4 | . . . . . . 4 . . . . . . . . . Programmers 4 | . . . . . . 4 . . . . . . . . . Robots Rewired 3 | . . . . . . . . . . . . 3 . . . Allies Hacked 2 | . . . . . . 2 . . . . . . . . . Hacks Repelled . | . . . . . . . . . . . . . . . . Allies | -11 -10 -10 -10 -9 -8 -7 -7 -7 -7 -6 -6 -6 -6 -6 -6 -------- Run | Scr Mat Min Exi Min Mat Fac Low Low Dat Pro Fac Ext Cet Arc Hub Total Allies 21 | . . . . 5 . . . . . 1 . 10 5 . . Largest Group 7 | . . . . 5 5 3 . . . 1 1 7 6 6 . Highest-Rated Group 604 | . . . . 85 85 46 . . . 94 94 348 604 590 . Highest-Rated Ally 156 | . . . . 31 31 16 . . . 94 94 156 156 127 . Total Orders 2 | . . . . . . . . . . . . . 2 . . STAY 1 | . . . . . . . . . . . . . 1 . . FOLLOW 1 | . . . . . . . . . . . . . 1 . . Ally Attacks 304 | . . . . . 17 . . . . 24 . 167 76 20 . Total Damage 7755 | . . . . . 257 . . . . 793 . 4310 1681 714 . Kills 66 | . . . . . 3 . . . . 9 . 33 16 5 . Allies Corrupted . | . . . . . . . . . . . . . . . . Allies Melted 1 | . . . . . . . . . . . . . . 1 . Intel | -11 -10 -10 -10 -9 -8 -7 -7 -7 -7 -6 -6 -6 -6 -6 -6 ------- Run | Scr Mat Min Exi Min Mat Fac Low Low Dat Pro Fac Ext Cet Arc Hub Robot Analysis Total 1 | . 1 . . . . . . . . . . . . . . Derelict Logs Recovered 7 | . . 1 . 2 . . . 3 . 1 . . . . . Drone Launches . | . . . . . . . . . . . . . . . . Drone Recoveries . | . . . . . . . . . . . . . . . . Exploration | -11 -10 -10 -10 -9 -8 -7 -7 -7 -7 -6 -6 -6 -6 -6 -6 ------------- Run | Scr Mat Min Exi Min Mat Fac Low Low Dat Pro Fac Ext Cet Arc Hub Turns Passed 8219 | 183 632 497 412 669 343 887 767 674 125 622 240 1413 476 63 216 Spaces Moved 4432 | 77 294 229 227 364 228 508 466 390 78 362 130 707 241 40 91 Core 12 | 7 . . . . . . . . . . . . . . 5 Treads 3427 | 70 294 229 227 364 1 7 220 390 78 362 130 688 241 40 86 Legs 19 | . . . . . . . . . . . . 19 . . . Wheels 974 | . . . . . 227 501 246 . . . . . . . . Hover . | . . . . . . . . . . . . . . . . Flight . | . . . . . . . . . . . . . . . . Fastest Speed 50 | 50 160 160 160 180 120 130 130 160 160 160 160 160 160 160 50 Average Speed 160 | 153 169 171 179 180 125 136 144 160 160 160 174 172 161 160 153 Slowest Speed 270 | 160 180 180 180 180 180 180 180 160 160 160 180 270 180 160 160 Overloaded Moves . | . . . . . . . . . . . . . . . . Propulsion Burnouts . | . . . . . . . . . . . . . . . . Robots Hopped . | . . . . . . . . . . . . . . . . Cave-ins Triggered 1 | . . . . . . . . . . . . . . . 1 Exploration Rate (%) 48 | 7 62 54 60 80 21 19 58 55 68 56 5 79 69 71 18 Regions Visited 15 Branch Regions 11 Pre-discovered Areas 3 | . . 1 1 . . . . . 1 . . . . . . Known Exits Taken 3 | . 1 . . . . 1 . . . . 1 . . . . Unknown Exits Taken 12 | 1 . 1 1 1 1 . 1 1 1 1 . 1 1 1 . Scrap Searched 7 | . . . . 1 . . 4 2 . . . . . . . Spaces Dug 8 | . . . . . 1 4 . 1 . . 2 . . . . Terrain Destroyed 76 | . . 22 . . 22 4 3 2 . 1 2 1 19 . . Melee 8 | . . . . . 1 4 . 1 . . 2 . . . . Projectile 6 | . . . . . . . 3 1 . 1 . 1 . . . AOE 62 | . . 22 . . 21 . . . . . . . 19 . . Terrain Rammed . | . . . . . . . . . . . . . . . . Walls Destroyed . | . . . . . . . . . . . . . . . . Machines Disabled . | . . . . . . . . . . . . . . . . Actions | -11 -10 -10 -10 -9 -8 -7 -7 -7 -7 -6 -6 -6 -6 -6 -6 --------- Run | Scr Mat Min Exi Min Mat Fac Low Low Dat Pro Fac Ext Cet Arc Hub Total 5276 | 108 359 326 234 380 272 683 525 425 78 393 139 873 313 39 129 Wait 312 | 1 13 69 . 4 3 129 15 20 . 10 2 41 5 . . Move 4417 | 76 293 228 226 363 227 507 465 389 77 361 129 706 240 39 91 Hop . | . . . . . . . . . . . . . . . . Pick Up 67 | 5 5 8 2 4 8 5 4 2 . 4 1 10 9 . . Fast Attach 29 | 7 2 . 1 . 1 1 2 2 . 1 . 4 5 . 3 Attach 15 | . . 1 . . 3 2 5 . . . 2 1 1 . . Detach 6 | . 1 . 1 . . . . . . . . 2 1 . 1 Swap 67 | . 3 4 . . 9 7 8 3 1 2 1 15 13 . 1 Drop 81 | . . 7 4 4 8 6 3 . . 6 1 19 19 . 4 Fire 151 | 19 38 7 . . 8 5 22 8 . 8 . 14 18 . 4 Melee 46 | . . . . . 3 10 . 1 . . 3 7 2 . 20 Ram 1 | . . . . . . 1 . . . . . . . . . Kick . | . . . . . . . . . . . . . . . . Crush 15 | . 4 2 . . 2 1 . . . . . 4 . . 2 Escape Stasis 17 | . . . . . . 8 . . . . . 6 . . 3 Rewire 46 | . . . . . . 1 1 . . . . 44 . . . Trap 6 | . . . . 5 . . . . . 1 . . . . . Miscellaneous . | . . . . . . . . . . . . . . . . Route ------- -11/Scrapyard -10/Materials (discovered 4 exits: [*Mat x2] / *Min x2) -10/Mines -10/Exiles -9/Mines -8/Materials -7/Factory (discovered 2 exits: *Low x2) -7/Lower Caves -7/Lower Caves -7/Data Miner -6/Proximity Caves -6/Factory (discovered 5 exits: Fac x2 / Low / *Ext x2) -6/Extension (discovered 3 exits: *Fac x2 / *Cet) -6/Cetus (discovered 2 exits: *Fac / *Arc) -6/Archives -6/Hub_04(d) History --------- Turn | Location | Event 28 | -11/Scrapyard | Discovered new exit (range 15) 184 | -11/Scrapyard | Entered Materials 312 | -10/Materials | Build established: Mutant 507 | -10/Materials | Discovered new exit (range 10) 725 | -10/Materials | Discovered new exit (range 8) 776 | -10/Materials | Identified exit to Mines 816 | -10/Materials | Entered Mines 824 | -10/Mines | Joined a pair of Derelicts in attacking an 0b10 outpost 928 | -10/Mines | Received a Rocket Launcher from a helpful Derelict 1144 | -10/Mines | Excavation squad dispatched 1144 | -10/Mines | A large section of the Mines collapsed 1305 | -10/Mines | Deemed a non-threat by the Exiles lab entrance 1305 | -10/Mines | Discovered new exit (range 5) 1313 | -10/Mines | Entered Exiles 1358 | -10/Exiles | Met 8R-AWN 1387 | -10/Exiles | Met EX-HEX 1443 | -10/Exiles | Met EX-BIN 1465 | -10/Exiles | Aligned with FarCom system 1466 | -10/Exiles | Given EX-Vault access code 1508 | -10/Exiles | Opened EX-Vault 1525 | -10/Exiles | Found AWS/Thermal 1563 | -10/Exiles | Warned to stay clear of 0b10 Research branches 1615 | -10/Exiles | Met EX-DEC 1624 | -10/Exiles | Learned location of Zion (-6) 1710 | -10/Exiles | Discovered new exit (range 10) 1725 | -10/Exiles | Left Exiles lab with AWS/Thermal 1725 | -10/Exiles | Entered Mines 1795 | -9/Mines | Learned Materials emergency access door positions 1854 | -9/Mines | Assisted by bots powering up and referring to "LRC-V3" 1863 | -9/Mines | Learned Materials garrison access intel 1891 | -9/Mines | Found the Drone Emporium 1900 | -9/Mines | Found Prototype Device 2005 | -9/Mines | Found a hidden stash of uninstalled traps 2044 | -9/Mines | A weapon hastily lodged in a ceiling crevice suddenly fell to the ground 2351 | -9/Mines | Discovered new exit (range 15) 2394 | -9/Mines | Entered Materials 2394 | -8/Materials | Accompanied by 5 allies 2394 | -8/Materials | Evolved 4 slots: Propulsion x1, Utility x2, Weapon x1 2396 | -8/Materials | Loaded intel: 1 garrison access location 2399 | -8/Materials | Led the pair of lost Derelicts to an unsafe place 2676 | -8/Materials | Discovered new exit (range 4) 2737 | -8/Materials | Entered Factory 2737 | -7/Factory | Accompanied by 3 allies 2737 | -7/Factory | Evolved 2 slots: Propulsion x1, Weapon x1 2921 | -7/Factory | Identified exit to Lower Caves 2997 | -7/Factory | Build established: Scavenger-Mutant 3308 | -7/Factory | Destroyed 7 combat bots 3375 | -7/Factory | Fabricated Matter Filter? 3624 | -7/Factory | Entered Lower Caves 3816 | -7/Lower Caves | Learned location of 1 exit from Research 3816 | -7/Lower Caves | Learned 8 Research zone layouts 3816 | -7/Lower Caves | Learned Extension emergency access door positions 3816 | -7/Lower Caves | Learned Factory stockpile data 3816 | -7/Lower Caves | Learned Research security intel 4015 | -7/Lower Caves | Encountered a Warlord checkpoint 4033 | -7/Lower Caves | Build established: Scavenger-Skirmisher 4155 | -7/Lower Caves | Attracted the attention of an 0b10 checkpoint 4206 | -7/Lower Caves | Lost 4 parts (3n1u) 4387 | -7/Lower Caves | Discovered new exit (range 3) 4391 | -7/Lower Caves | Entered another Lower Caves area 4422 | -7/Lower Caves | Learned location of 1 exit from Factory 4443 | -7/Lower Caves | Build established: Scavenger-Gunner 4500 | -7/Lower Caves | Learned location of 1 exit from Factory 4545 | -7/Lower Caves | Learned location of 1 exit from Factory 4948 | -7/Lower Caves | Encountered a Warlord checkpoint 5052 | -7/Lower Caves | Discovered new exit (range 5) 5065 | -7/Lower Caves | Entered Data Miner 5065 | -7/Data Miner | Discovered new exit (range 6) 5096 | -7/Data Miner | Met Data Miner 5126 | -7/Data Miner | Learned location of Section 7 (-2) 5126 | -7/Data Miner | Acquired the access code to Warlord's prototype stash 5149 | -7/Data Miner | Received God Mode back door access code from Data Miner 5190 | -7/Data Miner | Entered Proximity Caves 5229 | -6/Proximity Caves | Escorted by Enhanced Grunt 5301 | -6/Proximity Caves | Learned location of 2 exits from Factory 5621 | -6/Proximity Caves | Attracted the attention of an 0b10 checkpoint 5777 | -6/Proximity Caves | Discovered new exit (range 10) 5812 | -6/Proximity Caves | Entered Factory 5812 | -6/Factory | Accompanied by 1 ally 5812 | -6/Factory | Evolved 2 slots: Utility x1, Weapon x1 5813 | -6/Factory | Identified exit to Extension 5813 | -6/Factory | Identified exit to Lower Caves 5813 | -6/Factory | Identified exit to Factory 6052 | -6/Factory | Entered Extension 6052 | -6/Extension | Accompanied by 1 ally 6322 | -6/Extension | Rescued a captive Derelict 6368 | -6/Extension | Rescued a captive Derelict 6377 | -6/Extension | Rescued a captive Derelict 6409 | -6/Extension | Build established: Scavenger-Skirmisher 6430 | -6/Extension | Rescued A7 6743 | -6/Extension | Build established: Scavenger-Mutant 6808 | -6/Extension | Spotted B-75 Beast 6820 | -6/Extension | Allies destroyed B-75 Beast 6831 | -6/Extension | Spotted B-75 Beast 6841 | -6/Extension | Allies destroyed B-75 Beast 6852 | -6/Extension | Disrupted transfer network 6889 | -6/Extension | Discovered exit to Factory (range 3) 6991 | -6/Extension | Energy Cycler disabled 6991 | -6/Extension | Rescued a captive Derelict 6991 | -6/Extension | Rescued a captive Derelict 6992 | -6/Extension | Rescued a captive Derelict 6994 | -6/Extension | Rescued a captive Derelict 6997 | -6/Extension | Rescued a captive Derelict 6999 | -6/Extension | Rescued a captive Derelict 6999 | -6/Extension | Rescued a captive Derelict 7441 | -6/Extension | Discovered exit to Factory (range 10) 7442 | -6/Extension | Discovered new exit (range 6) 7465 | -6/Extension | Entered Cetus 7465 | -6/Cetus | Accompanied by 5 allies (A7) 7470 | -6/Cetus | Acquired a Cetus Manufacturing Module code from A7 7494 | -6/Cetus | Spotted Cetus Guard 7494 | -6/Cetus | Spotted Cetus Guard 7496 | -6/Cetus | Spotted Cetus Guard 7497 | -6/Cetus | Allies destroyed Cetus Guard 7502 | -6/Cetus | Allies destroyed Cetus Guard 7505 | -6/Cetus | Spotted Cetus Guard 7507 | -6/Cetus | Destroyed Cetus Guard 7507 | -6/Cetus | Allies destroyed Cetus Guard 7612 | -6/Cetus | Started Cetus Manufacturing Module 7637 | -6/Cetus | Manufactured an Enhanced Grunt 7662 | -6/Cetus | Manufactured an Enhanced Grunt 7687 | -6/Cetus | Manufactured an Enhanced Grunt 7712 | -6/Cetus | Manufactured an Enhanced Grunt 7716 | -6/Cetus | Discovered new exit (range 15) 7737 | -6/Cetus | Manufactured an Enhanced Grunt 7749 | -6/Cetus | Spotted Cetus Guard 7749 | -6/Cetus | Spotted Cetus Guard 7755 | -6/Cetus | Destroyed Cetus Guard 7755 | -6/Cetus | Spotted Cetus Guard 7758 | -6/Cetus | Destroyed Cetus Guard 7758 | -6/Cetus | Spotted Cetus Guard 7760 | -6/Cetus | Allies destroyed Cetus Guard 7764 | -6/Cetus | Destroyed Cetus Guard 7776 | -6/Cetus | Discovered exit to Factory (range 16) 7786 | -6/Cetus | Met Revision 17 7806 | -6/Cetus | Cetus Manufacturing Module disabled 7941 | -6/Cetus | Entered Archives 7941 | -6/Archives | Accompanied by 6 allies (A7) 7961 | -6/Archives | Met Zhirov 7967 | -6/Archives | Reinforcements dispatched to Archives 7978 | -6/Archives | Read partially decrypted archive contents 7981 | -6/Archives | Discovered new exit (range 15) 8004 | -6/Archives | Entered Hub_04(d) 8190 | -6/Hub_04(d) | Spotted B-75 Beast 8206 | -6/Hub_04(d) | Crushed by falling debris 8220 | -6/Hub_04(d) | Self-destructed Last Messages --------------- 08206_ Power Sword destroyed. 08206_ System corrupted by crushing effect (+1). 08206_ U-05 Engineer builds a Wall. 08206_ W-25 Informer sends out distress signal. 08207_ Slammed into G-50 Soldier. 08207_ U-05 Engineer builds a Wall. 08208_ W-25 Informer sends out distress signal. 08209_ Centrium Heavy Treads destroyed. 08209_ U-05 Engineer builds a Wall. 08210_ Dropped Lrg. Storage Unit. 08211_ Dropped Hcp. Storage Unit. 08212_ U-05 Engineer builds a Wall. 08213_ Gauss Rifle destroyed. 08216_ Triggered Stasis Trap. 08216_ A bubble of rippling energy engulfs the area. 08216_ Field strength at 94. 08217_ Field strength at 83. 08217_ Terminal disabled. 08218_ Field strength at 77. 08219_ Field strength at 66. Map ----- +----------------------------------------------------+ | | | | | | | | | | | | | | | | | | | ?????????????????????????????????????????????????? | | ?????????????????????????????????????????????????? | | ?????????????????????????????????????????????????? | | ?????????????????????????????????????????????????? | | ?????????????????????????????????????????????????? | | ?????????????????????????????????????????????????? | | ?????????????????????????????????????????????????? | | ?????????????????????????????????????????????????? | | ???????????????????????????##########????????????? | | ???????????????????###????# ????Y????????? | | ???????????????????? ???# ??????????????? | | ?????????????????????u ???+ /! ???????????????? | | ??????????????????????t ??# //?????????????????? | | ??????????????????????# ??# !??????????????????? | | ??????????????????????# ?#w ???????????????????? | | ??????????????????????# ##/###?#######??????????? | | ??????????????????????#u @ g[#? ?????????? | | ??????????????????????# k # " " " " ?????????? | | ??????????????????????# g # " " " " #????????? | | ??????????????????????# " u# " " " " #????????? | | ????????????????????? + "g" !#! #????????? | | ??????????????????w? # |!#!*!""T""??????????? | | ??????????????????? #[ BB[!/=!!"""""??????????? | | ??????????????????###?# #BB#%#![ #????????? | | ??????????????????????# # #[###########????????? | | ??????????????????????# ####/##############?????? | | ??????????????Y???????# #! ## #?????? | | ??????????????????????# # ## #?????? | | ??????????????????????# # ## #?????? | | ??????????????????????# # ## #?????? | | ??????????????????????# ?# ## #?????? | | ??????????????????????#A # ## ####### | | ??????????????????????# / ## # | | ??????????????????????## # ## # | | ???????????????????????# # ## # | | ???????????????????????#?# #?#+## ### | | ?????????????????????????# #?# #?? | | ?????????????????????????# #?# #?? | | ?????????????????????????########+#####?# #?? | | ????????????????????????????????# #?????# #?? | | ?????????????????????????########+##????# #?? | +----------------------------------------------------+ Best States ------------- Heat Dissipation 37 Energy Generation 25 Energy Capacity 950 Matter Stores 300 Matter Capacity 300 Sight Range 16 Terrain Scan Range 20 Terrain Scan Density 60 Armor Coverage 300 Resistance: EM 15 Weapon Cycling 15 Evasion (%) 40 Melee Accuracy 24 Recoil Reduction 4 Item Schematics ----------------- Combat Drone Bay | -7/Data Miner | Free Lgt. Regenerative Plating | -7/Data Miner | Free Exp. Flexi-carbon Leg | -7/Data Miner | Free Cmb. Gravmag System | -7/Data Miner | Free Mni. Smartbomb Launcher | -7/Data Miner | Free Plasma Sword | -7/Data Miner | Free Kinetic Spear | -7/Data Miner | Free Robot Schematics ------------------ S-27 Virus | -7/Data Miner | Free G-50 Soldier | -7/Data Miner | Free H-66 Slayer | -7/Data Miner | Free P-70 Sage | -7/Data Miner | Free I-36 Angel | -7/Data Miner | Free Fabricated ------------ Matter Filter | x2 | -7/Factory | Preloaded Alien Tech Used ----------------- None Achievements -------------- None Challenges ------------ None Game ------ Seed CorruptionDeepBarrier Manual? 1 Play Time 01:11:58 Cumulative 86.3 hours Start 2021.09.08 @ 18:23:06 End 2021.09.09 @ 17:48:53 Sessions 9 Manual Loads 0 Difficulty Rogue Special Mode None Game No. 62 Rogue 62 Adventurer 0 Explorer 0 Win Type - Total 1 Types 0/0/0/1/0/0/0/0/0 Lore% 59 Gallery% 69 Achievement% 44 Wizard Run 0 Options --------- ASCII 1 Keyboard 1 Movement Vi Keybinds 0 Fullscreen 2 Font 18/Cog Map View 76x50 Tactical HUD 1 Map Filters NONE Filters NONE Steam 0 RUN: 24d6129b-4f00-4807-9431-cf8defab58d9